[Event "Paul Keres Memorial Festival 2022"]
[Site "Pärnu, Estonia Resort Hotel & Spa"]
[Date "2022.07.18"]
[Round "1.6"]
[White "Veski, Rauno"]
[Black "Olde, Margareth"]
[Result "0-1"]
[TimeControl "60 min for 30 moves + 30 min until game end, from first move every move 30 sec time increment"]
[BlackTitle "WIM"]
[WhiteFideId "4514378"]
[BlackFideId "4503082"]
[WhiteElo "1303"]
[BlackElo "2235"]

1. e4 {[%clk 01:00:16]} {[%emt 00:00:43]} d6 {[%clk 01:00:45]} {[%emt
00:00:16]} 2. Nc3 {[%clk 00:58:57]} {[%emt 00:01:48]} e5 {[%clk 01:00:42]}
{[%emt 00:00:33]} 3. Bc4 {[%clk 00:58:37]} {[%emt 00:00:51]} Nf6 {[%clk
01:00:40]} {[%emt 00:00:32]} 4. d3 {[%clk 00:57:57]} {[%emt 00:01:10]} Be7
{[%clk 01:00:45]} {[%emt 00:00:24]} 5. f4 {[%clk 00:56:51]} {[%emt 00:01:37]}
c6 {[%clk 00:56:35]} {[%emt 00:04:41]} 6. Nf3 {[%clk 00:53:30]} {[%emt
00:03:51]} Nbd7 {[%clk 00:54:27]} {[%emt 00:02:37]} 7. fxe5 {[%clk 00:52:23]}
{[%emt 00:01:37]} Nxe5 {[%clk 00:54:23]} {[%emt 00:00:34]} 8. Nxe5 {[%clk
00:52:37]} {[%emt 00:00:16]} dxe5 {[%clk 00:54:43]} {[%emt 00:00:10]} 9. h3
{[%clk 00:50:59]} {[%emt 00:02:07]} b5 {[%clk 00:48:54]} {[%emt 00:06:18]} 10.
Bb3 {[%clk 00:50:25]} {[%emt 00:01:05]} a5 {[%clk 00:47:32]} {[%emt 00:01:52]}
11. a3 {[%clk 00:46:32]} {[%emt 00:04:23]} Qb6 {[%clk 00:44:33]} {[%emt
00:03:28]} 12. a4 {[%clk 00:40:25]} {[%emt 00:06:38]} b4 {[%clk 00:43:07]}
{[%emt 00:01:56]} 13. Nb1 {[%clk 00:38:49]} {[%emt 00:02:06]} Nxe4 {[%clk
00:40:33]} {[%emt 00:03:04]} 14. Qf3 {[%clk 00:37:39]} {[%emt 00:01:39]} Nf6
{[%clk 00:33:08]} {[%emt 00:07:56]} 15. Be3 {[%clk 00:37:36]} {[%emt 00:00:33]}
Bc5 {[%clk 00:31:36]} {[%emt 00:02:02]} 16. Bg5 {[%clk 00:36:34]} {[%emt
00:01:32]} Nd5 {[%clk 00:23:25]} {[%emt 00:08:41]} 17. Nd2 {[%clk 00:20:58]}
{[%emt 00:16:06]} O-O {[%clk 00:23:27]} {[%emt 00:00:28]} 18. Nc4 {[%clk
00:16:30]} {[%emt 00:04:57]} Qc7 {[%clk 00:23:43]} {[%emt 00:00:12]} 19. O-O-O
{[%clk 00:16:01]} {[%emt 00:01:02]} Be6 {[%clk 00:22:23]} {[%emt 00:01:50]} 20.
Rde1 {[%clk 00:12:29]} {[%emt 00:04:01]} f6 {[%clk 00:22:29]} {[%emt 00:00:25]}
21. Bd2 {[%clk 00:12:05]} {[%emt 00:00:55]} Bf7 {[%clk 00:20:40]} {[%emt
00:02:18]} 22. h4 {[%clk 00:10:49]} {[%emt 00:01:46]} Nb6 {[%clk 00:20:15]}
{[%emt 00:00:54]} 23. Nxb6 {[%clk 00:09:30]} {[%emt 00:01:51]} Bxb6 {[%clk
00:20:09]} {[%emt 00:00:36]} 24. Bxf7+ {[%clk 00:09:29]} {[%emt 00:00:30]} Qxf7
{[%clk 00:17:51]} {[%emt 00:02:49]} 25. b3 {[%clk 00:09:43]} {[%emt 00:00:15]}
Qd5 {[%clk 00:15:31]} {[%emt 00:02:48]} 26. Qe4 {[%clk 00:06:34]} {[%emt
00:03:41]} Bd4 {[%clk 00:14:43]} {[%emt 00:01:17]} 27. g4 {[%clk 00:06:23]}
{[%emt 00:00:42]} Rad8 {[%clk 00:13:03]} {[%emt 00:02:10]} 28. Rhf1 {[%clk
00:05:09]} {[%emt 00:01:44]} Bc3 {[%clk 00:12:21]} {[%emt 00:01:11]} 29. Qc4
{[%clk 00:03:58]} {[%emt 00:01:42]} Qxc4 {[%clk 00:11:40]} {[%emt 00:01:10]} 30.
bxc4 {[%clk 00:34:14]} {[%emt 00:00:13]} Bxd2+ {[%clk 00:40:51]} {[%emt
00:01:20]} 31. Kxd2 {[%clk 00:34:31]} {[%emt 00:00:13]} Rd4 {[%clk 00:40:59]}
{[%emt 00:00:20]} 32. Rg1 {[%clk 00:30:51]} {[%emt 00:04:13]} Rfd8 {[%clk
00:40:39]} {[%emt 00:00:49]} 33. Kc1 {[%clk 00:29:01]} {[%emt 00:02:20]} Kf7
{[%clk 00:36:57]} {[%emt 00:04:11]} 34. Re3 {[%clk 00:27:11]} {[%emt 00:02:20]}
Rf4 {[%clk 00:31:59]} {[%emt 00:05:28]} 35. h5 {[%clk 00:23:28]} {[%emt
00:04:14]} Rdd4 {[%clk 00:30:54]} {[%emt 00:01:34]} 36. Reg3 {[%clk 00:21:54]}
{[%emt 00:02:04]} Ke6 {[%clk 00:30:45]} {[%emt 00:00:38]} 37. R3g2 {[%clk
00:16:06]} {[%emt 00:06:18]} b3 {[%clk 00:29:16]} {[%emt 00:01:59]} 38. Kb2
{[%clk 00:14:35]} {[%emt 00:02:01]} bxc2 {[%clk 00:29:18]} {[%emt 00:00:28]} 39.
Kxc2 {[%clk 00:14:52]} {[%emt 00:00:12]} e4 {[%clk 00:29:01]} {[%emt 00:00:48]}
40. Re2 {[%clk 00:13:44]} {[%emt 00:01:38]} Kd6 {[%clk 00:29:19]} {[%emt
00:00:09]} 41. Re3 {[%clk 00:09:29]} {[%emt 00:04:48]} Kc5 {[%clk 00:28:54]}
{[%emt 00:00:55]} 42. Kc3 {[%clk 00:07:02]} {[%emt 00:02:58]} Rxd3+ {[%clk
00:29:05]} {[%emt 00:00:19]} 43. Rxd3 {[%clk 00:07:29]} {[%emt 00:00:03]} exd3
{[%clk 00:29:26]} {[%emt 00:00:08]} 44. Kxd3 {[%clk 00:07:56]} {[%emt
00:00:05]} Rxc4 {[%clk 00:29:39]} {[%emt 00:00:16]} 45. g5 {[%clk 00:07:28]}
{[%emt 00:00:58]} Rh4 {[%clk 00:28:24]} {[%emt 00:01:44]} 46. h6 {[%clk
00:05:51]} {[%emt 00:02:08]} gxh6 {[%clk 00:28:48]} {[%emt 00:00:06]} 47. gxf6
{[%clk 00:06:03]} {[%emt 00:00:18]} Rf4 {[%clk 00:29:11]} {[%emt 00:00:06]} 48.
Rc1+ {[%clk 00:05:24]} {[%emt 00:01:10]} Kd5 {[%clk 00:22:19]} {[%emt
00:07:18]} 49. Rh1 {[%clk 00:05:18]} {[%emt 00:00:40]} Rf3+ {[%clk 00:22:44]}
{[%emt 00:00:04]} 50. Kd2 {[%clk 00:04:22]} {[%emt 00:01:26]} Rxf6 {[%clk
00:22:43]} {[%emt 00:00:31]} 51. Rh5+ {[%clk 00:04:39]} {[%emt 00:00:13]} Kc4
{[%clk 00:22:49]} {[%emt 00:00:22]} 52. Rxa5 {[%clk 00:05:03]} {[%emt
00:00:08]} c5 {[%clk 00:22:29]} {[%emt 00:00:50]} 53. Ra7 {[%clk 00:05:02]}
{[%emt 00:00:31]} Kb4 {[%clk 00:22:49]} {[%emt 00:00:09]} 54. Kd3 {[%clk
00:04:14]} {[%emt 00:01:19]} c4+ {[%clk 00:17:13]} {[%emt 00:06:06]} 55. Kd2
{[%clk 00:02:37]} {[%emt 00:02:07]} c3+ {[%clk 00:14:18]} {[%emt 00:03:26]} 56.
Kd3 {[%clk 00:02:06]} {[%emt 00:01:01]} Rf3+ {[%clk 00:13:15]} {[%emt
00:01:31]} 57. Kc2 {[%clk 00:02:28]} {[%emt 00:00:09]} Rf2+ {[%clk 00:13:38]}
{[%emt 00:00:06]} 58. Kc1 {[%clk 00:02:39]} {[%emt 00:00:20]} Kb3 {[%clk
00:12:21]} {[%emt 00:01:47]} 59. Rb7+ {[%clk 00:02:31]} {[%emt 00:00:39]} Kxa4
{[%clk 00:12:29]} {[%emt 00:00:22]} 60. Rxh7 {[%clk 00:02:24]} {[%emt
00:00:36]} Rh2 {[%clk 00:12:53]} {[%emt 00:00:06]} 61. Rb7 {[%clk 00:01:11]}
{[%emt 00:01:43]} h5 {[%clk 00:12:59]} {[%emt 00:00:23]} 62. Rb8 {[%clk
00:00:57]} {[%emt 00:00:44]} h4 {[%clk 00:13:19]} {[%emt 00:00:10]} 63. Rb7
{[%clk 00:01:02]} {[%emt 00:00:25]} h3 {[%clk 00:13:12]} {[%emt 00:00:37]} 64.
Rb8 {[%clk 00:00:59]} {[%emt 00:00:34]} Rh1+ {[%clk 00:12:54]} {[%emt
00:00:47]} 65. Kc2 {[%clk 00:01:27]} {[%emt 00:00:03]} h2 {[%clk 00:13:18]}
{[%emt 00:00:06]} 66. Rh8 {[%clk 00:01:53]} {[%emt 00:00:04]} Kb4 {[%clk
00:13:40]} {[%emt 00:00:06]} 67. Rh4+ {[%clk 00:02:14]} {[%emt 00:00:11]} Kc5
{[%clk 00:14:03]} {[%emt 00:00:05]} 68. Rh8 {[%clk 00:00:58]} {[%emt 00:01:48]}
Ra1 {[%clk 00:14:15]} {[%emt 00:00:17]} 0-1

[Event "Paul Keres Memorial Festival 2022"]
[Site "Pärnu, Estonia Resort Hotel & Spa"]
[Date "2022.07.18"]
[Round "1.7"]
[White "Golubovskis, Maksims"]
[Black "Õim, Mikk Kaarel"]
[Result "0-1"]
[TimeControl "60 min for 30 moves + 30 min until game end, from first move every move 30 sec time increment"]
[WhiteTitle "FM"]
[WhiteFideId "11608528"]
[BlackFideId "4514815"]
[WhiteElo "2219"]
[BlackElo "1297"]

1. e4 {[%clk 01:00:56]} e5 {[%clk 01:00:48]} {[%emt 00:00:13]} 2. Nf3 {[%clk
01:01:13]} {[%emt 00:00:13]} Nc6 {[%clk 01:01:00]} {[%emt 00:00:20]} 3. d4
{[%clk 01:01:37]} {[%emt 00:00:07]} exd4 {[%clk 01:00:59]} {[%emt 00:00:29]} 4.
Nxd4 {[%clk 01:02:00]} {[%emt 00:00:06]} Nf6 {[%clk 01:01:04]} {[%emt
00:00:25]} 5. Nxc6 {[%clk 01:02:22]} {[%emt 00:00:07]} bxc6 {[%clk 01:01:23]}
{[%emt 00:00:12]} 6. e5 {[%clk 01:02:47]} {[%emt 00:00:04]} Qe7 {[%clk
01:01:30]} {[%emt 00:00:23]} 7. Qe2 {[%clk 01:03:09]} {[%emt 00:00:08]} Nd5
{[%clk 01:01:43]} {[%emt 00:00:18]} 8. h4 {[%clk 01:03:32]} {[%emt 00:00:07]}
h6 {[%clk 01:00:24]} {[%emt 00:01:49]} 9. c4 {[%clk 01:03:28]} {[%emt
00:00:33]} Ba6 {[%clk 01:00:37]} {[%emt 00:00:17]} 10. Rh3 {[%clk 01:03:13]}
{[%emt 00:00:44]} Nb6 {[%clk 00:49:16]} {[%emt 00:11:51]} 11. b3 {[%clk
00:58:34]} {[%emt 00:05:09]} O-O-O {[%clk 00:43:35]} {[%emt 00:06:10]} 12. Bb2
{[%clk 00:55:20]} {[%emt 00:03:45]} d6 {[%clk 00:38:24]} {[%emt 00:05:41]} 13.
exd6 {[%clk 00:54:24]} {[%emt 00:01:26]} Qxe2+ {[%clk 00:37:49]} {[%emt
00:01:05]} 14. Bxe2 {[%clk 00:54:51]} {[%emt 00:00:02]} cxd6 {[%clk 00:37:44]}
{[%emt 00:00:37]} 15. Nc3 {[%clk 00:48:25]} {[%emt 00:06:56]} Be7 {[%clk
00:33:26]} {[%emt 00:04:48]} 16. a4 {[%clk 00:47:45]} {[%emt 00:01:10]} Bf6
{[%clk 00:30:20]} {[%emt 00:03:36]} 17. a5 {[%clk 00:47:53]} {[%emt 00:00:23]}
Nd7 {[%clk 00:30:34]} {[%emt 00:00:16]} 18. b4 {[%clk 00:40:12]} {[%emt
00:08:10]} Rhe8 {[%clk 00:27:45]} {[%emt 00:03:19]} 19. b5 {[%clk 00:39:59]}
{[%emt 00:00:43]} Bb7 {[%clk 00:27:32]} {[%emt 00:00:43]} 20. Kf1 {[%clk
00:39:25]} {[%emt 00:01:04]} c5 {[%clk 00:23:28]} {[%emt 00:04:35]} 21. Rd1
{[%clk 00:35:16]} {[%emt 00:04:37]} Kc7 {[%clk 00:17:30]} {[%emt 00:06:29]} 22.
b6+ {[%clk 00:32:01]} {[%emt 00:03:45]} axb6 {[%clk 00:12:15]} {[%emt
00:05:46]} 23. Nb5+ {[%clk 00:32:13]} {[%emt 00:00:17]} Kb8 {[%clk 00:12:26]}
{[%emt 00:00:18]} 24. Nxd6 {[%clk 00:25:06]} {[%emt 00:07:37]} Bxg2+ {[%clk
00:11:14]} {[%emt 00:01:43]} 25. Kxg2 {[%clk 00:25:35]} Rxe2 {[%clk 00:11:30]}
{[%emt 00:00:15]} 26. Nxf7 {[%clk 00:20:02]} {[%emt 00:06:02]} Rf8 {[%clk
00:11:19]} {[%emt 00:00:41]} 27. Rxd7 {[%clk 00:20:13]} {[%emt 00:00:18]} Rxb2
{[%clk 00:11:14]} {[%emt 00:00:36]} 28. a6 {[%clk 00:16:02]} {[%emt 00:04:41]}
Ra2 {[%clk 00:08:59]} {[%emt 00:02:44]} 29. Rb7+ {[%clk 00:08:07]} {[%emt
00:08:26]} Ka8 {[%clk 00:09:18]} {[%emt 00:00:10]} 30. Rd3 {[%clk 00:36:58]}
{[%emt 00:01:39]} Bd4 {[%clk 00:38:00]} {[%emt 00:01:49]} 31. Rf3 {[%clk
00:24:06]} {[%emt 00:13:21]} Rxa6 {[%clk 00:35:56]} {[%emt 00:02:35]} 32. Rc7
{[%clk 00:20:06]} {[%emt 00:04:30]} Kb8 {[%clk 00:14:24]} {[%emt 00:22:02]} 33.
Rc6 {[%clk 00:18:49]} {[%emt 00:01:47]} Bf6 {[%clk 00:13:41]} {[%emt 00:01:13]}
34. Nxh6 {[%clk 00:17:21]} {[%emt 00:01:58]} Kb7 {[%clk 00:11:42]} {[%emt
00:02:29]} 35. Re6 {[%clk 00:15:20]} {[%emt 00:02:31]} b5 {[%clk 00:08:23]}
{[%emt 00:03:49]} 36. Rxa6 {[%clk 00:15:48]} {[%emt 00:00:02]} Kxa6 {[%clk
00:08:46]} {[%emt 00:00:07]} 37. cxb5+ {[%clk 00:16:04]} {[%emt 00:00:13]} Kxb5
{[%clk 00:09:07]} {[%emt 00:00:09]} 38. Nf5 {[%clk 00:15:30]} {[%emt 00:01:03]}
c4 {[%clk 00:04:26]} {[%emt 00:05:12]} 39. Nd4+ {[%clk 00:12:36]} {[%emt
00:03:24]} Ka4 {[%clk 00:02:56]} {[%emt 00:02:00]} 40. Rf4 {[%clk 00:11:26]}
{[%emt 00:01:40]} Rc8 {[%clk 00:01:30]} {[%emt 00:01:56]} 41. Nf5 {[%clk
00:08:37]} {[%emt 00:03:17]} Kb3 {[%clk 00:00:53]} {[%emt 00:01:09]} 42. Ne3
{[%clk 00:06:02]} {[%emt 00:03:05]} Rc5 {[%clk 00:00:32]} {[%emt 00:00:52]} 43.
Kh3 {[%clk 00:05:53]} {[%emt 00:00:38]} c3 {[%clk 00:00:47]} {[%emt 00:00:15]}
44. Kg4 {[%clk 00:05:45]} {[%emt 00:00:38]} Rb5 {[%clk 00:00:33]} {[%emt
00:00:44]} 45. Kf3 {[%clk 00:03:21]} {[%emt 00:02:54]} Re5 {[%clk 00:00:34]}
{[%emt 00:00:30]} 46. Nf5 {[%clk 00:02:59]} {[%emt 00:00:52]} Re8 {[%clk
00:00:34]} {[%emt 00:00:29]} 47. Nd6 {[%clk 00:03:14]} {[%emt 00:00:15]} Rd8
{[%clk 00:00:38]} {[%emt 00:00:26]} 48. Nb7 {[%clk 00:02:46]} {[%emt 00:00:58]}
Rd5 {[%clk 00:00:47]} {[%emt 00:00:21]} 49. Re4 {[%clk 00:01:29]} {[%emt
00:01:47]} c2 {[%clk 00:00:48]} {[%emt 00:00:29]} 50. Re1 {[%clk 00:01:54]}
{[%emt 00:00:05]} Kb2 {[%clk 00:01:04]} {[%emt 00:00:14]} 51. Re2 {[%clk
00:02:16]} {[%emt 00:00:08]} Kb1 {[%clk 00:01:20]} {[%emt 00:00:15]} 0-1

[Event "Paul Keres Memorial Festival 2022"]
[Site "Pärnu, Estonia Resort Hotel & Spa"]
[Date "2022.07.18"]
[Round "1.8"]
[White "Köösel, Hans-Georg"]
[Black "Medar, Marti"]
[Result "0-1"]
[TimeControl "60 min for 30 moves + 30 min until game end, from first move every move 30 sec time increment"]
[WhiteFideId "4509595"]
[BlackFideId "4501870"]
[WhiteElo "1273"]
[BlackElo "2066"]

1. Nf3 {[%clk 01:00:49]} {[%emt 00:00:09]} e6 {[%clk 00:59:48]} {[%emt
00:01:12]} 2. d4 {[%clk 01:00:32]} {[%emt 00:00:48]} c5 {[%clk 00:59:53]}
{[%emt 00:00:25]} 3. c4 {[%clk 01:00:04]} {[%emt 00:00:58]} cxd4 {[%clk
00:59:36]} {[%emt 00:00:46]} 4. Nxd4 {[%clk 00:59:48]} {[%emt 00:00:46]} Nc6
{[%clk 00:59:52]} {[%emt 00:00:14]} 5. Nc3 {[%clk 00:59:13]} {[%emt 00:01:05]}
a6 {[%clk 00:56:49]} {[%emt 00:03:33]} 6. e4 {[%clk 00:56:55]} {[%emt
00:02:48]} Qb6 {[%clk 00:48:43]} {[%emt 00:08:35]} 7. Nb3 {[%clk 00:54:03]}
{[%emt 00:03:22]} Nf6 {[%clk 00:48:14]} {[%emt 00:00:59]} 8. Be3 {[%clk
00:53:19]} {[%emt 00:01:15]} Qc7 {[%clk 00:48:41]} {[%emt 00:00:02]} 9. Be2
{[%clk 00:51:24]} {[%emt 00:02:26]} Bb4 {[%clk 00:46:42]} {[%emt 00:02:29]} 10.
f3 {[%clk 00:49:28]} {[%emt 00:02:26]} O-O {[%clk 00:43:01]} {[%emt 00:04:11]}
11. O-O {[%clk 00:49:11]} {[%emt 00:00:47]} Rd8 {[%clk 00:42:08]} {[%emt
00:01:23]} 12. Na4 {[%clk 00:46:55]} {[%emt 00:02:46]} Qe5 {[%clk 00:35:16]}
{[%emt 00:07:22]} 13. Nb6 {[%clk 00:43:32]} {[%emt 00:03:53]} Rb8 {[%clk
00:34:56]} {[%emt 00:00:49]} 14. Qc1 {[%clk 00:36:40]} {[%emt 00:07:22]} Bd6
{[%clk 00:30:54]} {[%emt 00:04:32]} 15. g3 {[%clk 00:34:09]} {[%emt 00:03:02]}
Qh5 {[%clk 00:31:02]} {[%emt 00:00:21]} 16. Qe1 {[%clk 00:22:42]} {[%emt
00:11:58]} Qg6 {[%clk 00:29:27]} {[%emt 00:02:05]} 17. Rd1 {[%clk 00:22:01]}
{[%emt 00:01:11]} Bc7 {[%clk 00:27:54]} {[%emt 00:02:03]} 18. a3 {[%emt
00:03:29]} a5 {[%clk 00:23:54]} {[%emt 00:04:29]} 19. Nc1 {[%clk 00:14:56]}
{[%emt 00:04:38]} h5 {[%clk 00:17:14]} {[%emt 00:07:09]} 20. Nd3 {[%clk
00:13:24]} {[%emt 00:02:02]} Re8 {[%clk 00:14:54]} {[%emt 00:02:49]} 21. b4
{[%clk 00:12:42]} {[%emt 00:01:13]} d5 {[%clk 00:13:43]} {[%emt 00:01:40]} 22.
cxd5 {[%clk 00:11:35]} {[%emt 00:01:37]} Bxb6 {[%clk 00:08:33]} {[%emt
00:05:40]} 23. Bxb6 {[%clk 00:11:47]} {[%emt 00:00:19]} exd5 {[%clk 00:09:01]}
{[%emt 00:00:02]} 24. Nf4 {[%clk 00:11:11]} {[%emt 00:01:06]} Qh6 {[%clk
00:07:50]} {[%emt 00:01:40]} 25. Nxd5 {[%clk 00:11:06]} {[%emt 00:00:36]} Nxd5
{[%clk 00:07:12]} {[%emt 00:01:08]} 26. exd5 {[%clk 00:09:05]} {[%emt
00:02:31]} Ne5 {[%clk 00:02:13]} {[%emt 00:05:29]} 27. Qf2 {[%clk 00:07:52]}
{[%emt 00:01:44]} axb4 {[%clk 00:02:01]} {[%emt 00:00:43]} 28. axb4 {[%clk
00:06:39]} {[%emt 00:01:42]} Bh3 {[%clk 00:02:02]} {[%emt 00:00:28]} 29. Rfe1
{[%clk 00:06:45]} {[%emt 00:00:24]} Rbc8 {[%clk 00:02:12]} {[%emt 00:00:20]} 30.
Bb5 {[%clk 00:35:08]} {[%emt 00:02:07]} Nxf3+ {[%clk 00:31:21]} {[%emt
00:01:21]} 31. Kh1 {[%clk 00:29:37]} {[%emt 00:06:01]} Rxe1+ {[%clk 00:29:32]}
{[%emt 00:02:20]} 32. Rxe1 {[%clk 00:30:01]} {[%emt 00:00:05]} Nxe1 {[%clk
00:29:23]} {[%emt 00:00:39]} 33. Be3 {[%clk 00:29:46]} {[%emt 00:00:45]} Qd6
{[%clk 00:29:21]} {[%emt 00:00:33]} 0-1

[Event "Paul Keres Memorial Festival 2022"]
[Site "Pärnu, Estonia Resort Hotel & Spa"]
[Date "2022.07.19"]
[Round "2.1"]
[White "Hannson, Markus"]
[Black "Kantans, Toms"]
[Result "0-1"]
[TimeControl "60 min for 30 moves + 30 min until game end, from first move every move 30 sec time increment"]
[BlackTitle "GM"]
[WhiteFideId "4505620"]
[BlackFideId "11602945"]
[WhiteElo "1745"]
[BlackElo "2486"]

1. c4 {[%clk 01:00:58]} e5 {[%clk 00:59:17]} {[%emt 00:01:43]} 2. Nc3 {[%clk
01:01:06]} {[%emt 00:00:22]} Nc6 {[%clk 00:55:41]} {[%emt 00:04:06]} 3. g3
{[%clk 01:01:02]} {[%emt 00:00:34]} Bc5 {[%clk 00:55:03]} {[%emt 00:01:09]} 4.
Bg2 {[%clk 01:01:13]} {[%emt 00:00:20]} d6 {[%clk 00:55:26]} {[%emt 00:00:06]}
5. e3 {[%clk 01:01:24]} {[%emt 00:00:19]} a6 {[%clk 00:55:51]} {[%emt
00:00:05]} 6. Nf3 {[%clk 01:01:38]} {[%emt 00:00:16]} Nf6 {[%clk 00:54:49]}
{[%emt 00:01:32]} 7. d4 {[%clk 00:56:52]} {[%emt 00:05:16]} exd4 {[%clk
00:55:11]} {[%emt 00:00:08]} 8. exd4 {[%clk 00:57:16]} {[%emt 00:00:07]} Ba7
{[%clk 00:55:36]} {[%emt 00:00:05]} 9. Qe2+ {[%clk 00:57:15]} {[%emt 00:00:31]}
Ne7 {[%clk 00:54:25]} {[%emt 00:01:41]} 10. Bg5 {[%clk 00:55:57]} {[%emt
00:01:47]} O-O {[%clk 00:54:46]} {[%emt 00:00:08]} 11. Bxf6 {[%clk 00:56:20]}
{[%emt 00:00:07]} gxf6 {[%clk 00:55:11]} {[%emt 00:00:05]} 12. O-O {[%clk
00:53:58]} {[%emt 00:02:53]} Rb8 {[%clk 00:52:46]} {[%emt 00:02:55]} 13. b4
{[%clk 00:43:32]} {[%emt 00:10:57]} Ng6 {[%clk 00:51:36]} {[%emt 00:01:40]} 14.
Rfe1 {[%clk 00:38:04]} {[%emt 00:05:57]} Bg4 {[%clk 00:50:44]} {[%emt
00:01:22]} 15. Rad1 {[%clk 00:31:57]} {[%emt 00:06:37]} Qd7 {[%clk 00:46:25]}
{[%emt 00:04:50]} 16. Nd5 {[%clk 00:21:26]} {[%emt 00:11:00]} Kg7 {[%clk
00:46:35]} {[%emt 00:00:19]} 17. Ne3 {[%clk 00:21:46]} {[%emt 00:00:10]} h5
{[%clk 00:41:46]} {[%emt 00:05:19]} 18. h4 {[%clk 00:19:42]} {[%emt 00:02:35]}
Rfe8 {[%clk 00:35:12]} {[%emt 00:07:04]} 19. Qd3 {[%clk 00:17:28]} {[%emt
00:02:42]} c6 {[%clk 00:31:12]} {[%emt 00:04:33]} 20. a4 {[%clk 00:11:24]}
{[%emt 00:06:34]} f5 {[%clk 00:29:08]} {[%emt 00:02:33]} 21. Nxg4 {[%clk
00:05:51]} {[%emt 00:06:03]} fxg4 {[%clk 00:29:25]} {[%emt 00:00:13]} 22. Nd2
{[%clk 00:04:08]} {[%emt 00:02:12]} Re7 {[%clk 00:23:44]} {[%emt 00:06:12]} 23.
Rxe7 {[%clk 00:03:42]} {[%emt 00:00:56]} Qxe7 {[%clk 00:23:58]} {[%emt
00:00:16]} 24. Be4 {[%clk 00:03:46]} {[%emt 00:00:26]} d5 {[%clk 00:18:06]}
{[%emt 00:06:23]} 25. Bxg6 {[%clk 00:03:54]} {[%emt 00:00:22]} fxg6 {[%clk
00:18:15]} {[%emt 00:00:21]} 26. c5 {[%clk 00:03:47]} {[%emt 00:00:37]} Re8
{[%clk 00:18:29]} {[%emt 00:00:15]} 27. Nf1 {[%clk 00:03:29]} {[%emt 00:00:48]}
Qf6 {[%clk 00:18:38]} {[%emt 00:00:21]} 28. b5 {[%clk 00:02:50]} {[%emt
00:01:09]} axb5 {[%clk 00:19:00]} {[%emt 00:00:08]} 29. axb5 {[%clk 00:03:16]}
{[%emt 00:00:04]} b6 {[%clk 00:18:21]} {[%emt 00:01:09]} 30. bxc6 {[%clk
00:32:12]} {[%emt 00:01:34]} bxc5 {[%clk 00:46:02]} {[%emt 00:02:49]} 31. Qa3
{[%clk 00:28:31]} {[%emt 00:04:11]} Bb8 {[%clk 00:37:40]} {[%emt 00:08:51]} 32.
c7 {[%clk 00:24:55]} {[%emt 00:04:07]} Bxc7 {[%clk 00:37:31]} {[%emt 00:00:39]}
33. Qxc5 {[%clk 00:25:21]} {[%emt 00:00:04]} Bb6 {[%clk 00:37:25]} {[%emt
00:00:37]} 34. Qxd5 {[%clk 00:25:15]} {[%emt 00:00:35]} Re2 {[%clk 00:36:40]}
{[%emt 00:01:16]} 35. Qb7+ {[%clk 00:25:05]} {[%emt 00:00:39]} Kh6 {[%clk
00:36:42]} {[%emt 00:00:28]} 36. Qg2 {[%clk 00:25:25]} {[%emt 00:00:10]} Bxd4
{[%clk 00:36:47]} {[%emt 00:00:25]} 37. Rxd4 {[%clk 00:20:09]} {[%emt
00:05:46]} Qxd4 {[%clk 00:37:10]} {[%emt 00:00:06]} 38. Ne3 {[%clk 00:18:39]}
{[%emt 00:02:01]} Qa1+ {[%clk 00:37:03]} {[%emt 00:00:37]} 39. Kh2 {[%clk
00:18:40]} {[%emt 00:00:29]} Qe1 {[%clk 00:37:03]} {[%emt 00:00:29]} 40. Qa8
{[%clk 00:17:37]} {[%emt 00:01:33]} Rxf2+ {[%clk 00:36:18]} {[%emt 00:01:15]}
41. Ng2 {[%clk 00:16:26]} {[%emt 00:01:41]} Qc3 {[%clk 00:36:34]} {[%emt
00:00:14]} 42. Qd5 {[%clk 00:15:29]} {[%emt 00:01:28]} Qd2 {[%clk 00:35:14]}
{[%emt 00:01:49]} 43. Qa8 {[%clk 00:15:41]} {[%emt 00:00:19]} Qd4 {[%clk
00:35:38]} {[%emt 00:00:06]} 44. Qa5 {[%clk 00:14:26]} {[%emt 00:01:45]} Qe4
{[%clk 00:35:47]} {[%emt 00:00:20]} 45. Qg5+ {[%clk 00:13:06]} {[%emt
00:01:49]} Kh7 {[%clk 00:36:11]} {[%emt 00:00:07]} 0-1